Cogmind - Beta 16.1 @@@ ROGUE MODE // 2026.06.20 @ 04:30:05 Player: Artackni Result: Destroyed by B-99 Colossus with Linear Accelerator Performance ------------- Evolutions (9) 4500 Regions Visited (17) 3400 Robots Destroyed (157) 785 Value Destroyed (4756) 4756 Prototype IDs (18) 360 Alien Tech Used (1) 200 Bonus (1923) 1923 TOTAL SCORE: 15924 Bonus ------- High Alert Combat Kills 623 Entered DSFs 1000 Met Zhirov 300 Cogmind --------- Core Integrity 0/1600 Matter 140/300 Energy 99/100 System Corruption 38% Temperature Cool (0) Movement Core (50) Location -1/Access Parts ------- > --- POWER (1) -------- (None) > --- PROPULSION (20) -- (None) > --- UTILITY (2) ------ (None) > --- WEAPON (2) ------- (None) > --- INVENTORY (5) ---- Advanced Weight Redist. System Heavy Machine Gun Heavy Mace Power Sword Peak State ------------ > --- POWER ------------ (None) > --- PROPULSION ------- Medium Treads Biometal Medium Treads Biometal Medium Treads Biometal Medium Treads Biometal Medium Treads Biometal Heavy Treads Biometal Heavy Treads Biometal Heavy Treads Advanced Heavy Siege Treads Improved Thunder Leg Improved Thunder Leg Improved Thunder Leg Improved Thunder Leg Centrium Leg Heavy Shield Leg > --- UTILITY ---------- Advanced Weight Redist. System Improved Hacking Suite > --- WEAPON ----------- Long-range Missile Launcher Heavy Mace > --- INVENTORY -------- Advanced Weight Redist. System Flak Gun Flak Gun Power Sword [Rating: 184] Favorites ----------- Power Light Ion Engine Engine Light Ion Engine Power Core Light Nuclear Core Propulsion Armored Leg Treads Armored Medium Treads Leg Armored Leg Wheel Wheel Hover Unit Cooled Airjet Flight Unit Cesium-ion Thruster Utility Advanced Weight Redist. System Device Advanced Weight Redist. System Storage Small Storage Unit Processor Visual Processing Unit Hackware Improved Hacking Suite Protection Improved Propulsion Shielding Weapon Flak Gun Energy Gun Medium Laser Ballistic Gun Flak Gun Launcher Missile Launcher Special Weapon Mining Laser Impact Weapon Hammer Slashing Weapon Katana Build | -11 -10 -9 -9 -8 -7 -7 -6 -5 -5 -5 -5 -4 -4 -4 -3 -2 -1 ------- Run | Yrd Mat Mat Min Mat Fac DSF Fac Fac Upp Upp Zhi Pro Fac DSF Res Res Acc Slots Evolved 18 | . . 2 . 2 2 . 2 2 . . . . 2 . 2 2 2 Power . | . . . . . . . . . . . . . . . . . . Propulsion 18 | . . 2 . 2 2 . 2 2 . . . . 2 . 2 2 2 Utility . | . . . . . . . . . . . . . . . . . . Weapon . | . . . . . . . . . . . . . . . . . . Parts Attached 114 | 8 2 5 3 16 4 2 18 3 2 1 3 1 1 11 9 4 21 Power 7 | 1 1 . . 1 . . 2 . . . . . . . 1 . 1 Engine 6 | 1 . . . 1 . . 2 . . . . . . . 1 . 1 Core 1 | . 1 . . . . . . . . . . . . . . . . Reactor . | . . . . . . . . . . . . . . . . . . Propulsion 72 | 2 1 4 . 6 3 . 12 2 1 . 3 1 . 11 6 3 17 Treads 28 | . . 4 . 2 1 . 1 1 . . . . . 6 3 1 9 Leg 25 | . . . . 2 1 . 6 . . . . . . 5 1 2 8 Wheel 11 | 2 1 . . . . . 3 1 1 . . 1 . . 2 . . Hover 6 | . . . . 1 1 . 1 . . . 3 . . . . . . Flight 2 | . . . . 1 . . 1 . . . . . . . . . . Utility 14 | 3 . 1 1 4 . . 1 1 . . . . . . 1 1 1 Device 8 | 2 . 1 1 1 . . . 1 . . . . . . 1 . 1 Storage 1 | 1 . . . . . . . . . . . . . . . . . Processor 1 | . . . . . . . 1 . . . . . . . . . . Hackware 2 | . . . . 1 . . . . . . . . . . . 1 . Protection 2 | . . . . 2 . . . . . . . . . . . . . Artifact . | . . . . . . . . . . . . . . . . . . Weapon 21 | 2 . . 2 5 1 2 3 . 1 1 . . 1 . 1 . 2 Energy Gun 1 | 1 . . . . . . . . . . . . . . . . . Energy Cannon . | . . . . . . . . . . . . . . . . . . Ballistic Gun 6 | 1 . . . 2 1 . 1 . . . . . . . . . 1 Ballistic Cannon . | . . . . . . . . . . . . . . . . . . Launcher 5 | . . . 1 . . 1 1 . 1 . . . 1 . . . . Special Weapon 1 | . . . 1 . . . . . . . . . . . . . . Impact Weapon 3 | . . . . 2 . . . . . . . . . . . . 1 Slashing Weapon 5 | . . . . 1 . 1 1 . . 1 . . . . 1 . . Piercing Weapon . | . . . . . . . . . . . . . . . . . . Special Melee Weapon . | . . . . . . . . . . . . . . . . . . Unidentified Prototypes 8 | . . . 1 2 1 . 1 . . . 2 . . . 1 . . Parts Lost 59 | . . 1 . 7 . . 3 1 1 5 . 1 . 2 4 2 32 Power 4 | . . . . . . . 1 . 1 . . . . . 1 . 1 Propulsion 45 | . . 1 . 6 . . 2 1 . 4 . 1 . 2 1 2 25 Utility 5 | . . . . 1 . . . . . . . . . . 1 . 3 Weapon 5 | . . . . . . . . . . 1 . . . . 1 . 3 Highest Loss Streak 14 | . . 1 . 2 . . 1 1 1 5 . 1 . 2 4 1 14 To Critical Strikes 2 | . . . . . . . . . . . . . . . . 1 1 Average Backups 4 | 2 7 6 3 4 5 4 5 5 5 5 5 5 5 4 4 4 4 Power . | . 1 . . . . . . . . . . . . . . . . Propulsion . | 1 3 1 . . . . . . . . . . . . . . . Utility 1 | . 2 2 1 . 1 1 1 1 1 1 1 1 1 1 1 1 . Weapon 3 | . 1 1 2 3 4 3 4 4 4 4 4 4 4 3 3 3 3 Tool/Special . | . . . . . . . . . . . . . . . . . . Unused Backups 10 | . 1 3 2 2 . 1 . . . . . . . . . . 1 Power 1 | . . 1 . . . . . . . . . . . . . . . Propulsion 2 | . 1 . 1 . . . . . . . . . . . . . . Utility 3 | . . 1 . 1 . . . . . . . . . . . . 1 Weapon 4 | . . 1 1 1 . 1 . . . . . . . . . . . Tool/Special . | . . . . . . . . . . . . . . . . . . Average Slot Usage (%) 77 | . 100 75 76 65 73 84 93 89 94 91 73 79 73 74 78 68 58 Engine 2 | . 7 . . 1 7 7 5 5 3 . . . . . 1 . . Treads 21 | . . 22 44 28 10 15 12 12 17 16 11 11 10 14 30 37 25 Leg 21 | . . . . 11 14 15 25 37 35 34 29 24 21 33 28 20 21 Wheel 6 | . 28 10 . . . . 10 8 12 16 5 7 10 4 4 1 . Hover 2 | . . . . 2 5 7 6 . . . 8 17 15 6 . . . Device 5 | . 14 15 22 8 7 7 6 5 5 5 5 5 5 5 2 . 2 Processor 2 | . . . . . . . 2 5 5 5 5 5 5 5 4 4 1 Hackware 1 | . . . . 2 7 7 3 . . . . . . . . . 3 Energy Gun 1 | . 14 11 . . . . . . . . . . . . . . . Ballistic Gun 2 | . 14 5 . . 3 . 5 3 4 4 . . . . . . 1 Impact Weapon 1 | . . . . 6 7 6 . . . . . . . . . . 1 Slashing Weapon 3 | . . . . 2 . . 6 5 5 4 5 5 5 5 4 4 1 Peak Build Rating 184 | 7 10 11 19 19 31 31 54 55 56 55 64 67 71 87 100 128 184 Average Rating 60 | 5 8 8 8 12 27 30 43 52 55 54 53 62 67 68 92 116 122 On Entrance 45 | . 7 10 7 9 17 31 31 54 55 55 43 64 67 67 87 95 115 Avg Prop Armor Cover (%) 41 | . . 39 36 40 34 33 36 37 38 41 44 44 45 45 46 48 45 Naked Turns 22 | . . . . . . . . . . . . . . . . . 22 Heaviest Build 15 | 13 15 15 3 7 10 12 10 12 10 7 2 2 2 2 9 3 11 Greatest Support 35 | 32 32 26 3 12 12 12 19 12 12 12 3 3 3 3 12 3 35 Greatest Overweight (x) 2 | . . 1 . 2 . . . . 2 2 . . . . . . 2 Average Overweight (x) . | . . . . . . . . . . . . . . . . . . Largest Inventory Capacity 8 | 8 8 8 5 5 5 5 5 5 5 5 5 5 5 5 5 5 5 Average Capacity 5 | 7 8 6 5 5 5 5 5 5 5 5 5 5 5 5 5 5 5 Most Carried 8 | 7 8 8 5 5 5 5 5 5 5 5 5 5 5 5 5 5 5 Average Carried 4 | 3 7 6 4 4 4 4 5 5 5 5 5 5 4 4 4 4 4 Final Capacity 8 | 8 8 5 5 5 5 5 5 5 5 5 5 5 5 5 5 5 5 Final Carried 8 | 7 8 5 5 5 5 5 5 5 5 5 5 5 5 5 5 5 4 Class Distribution -------------------- 60% | Mutant 39% | Scavenger-Mutant Dominant Class ---------------- Mutant | -10/Materials Mutant | -9/Materials Mutant | -9/Mines Mutant | -8/Materials Mutant | -7/Factory Mutant | -7/DSF Scavenger-Mutant | -6/Factory Scavenger-Mutant | -5/Factory Scavenger-Mutant | -5/Upper Caves Scavenger-Mutant | -5/Upper Caves Mutant | -5/Zhirov Mutant | -4/Proximity Caves Mutant | -4/Factory Mutant | -4/DSF Mutant | -3/Research Mutant | -2/Research Mutant | -1/Access Resources | -11 -10 -9 -9 -8 -7 -7 -6 -5 -5 -5 -5 -4 -4 -4 -3 -2 -1 ----------- Run | Yrd Mat Mat Min Mat Fac DSF Fac Fac Upp Upp Zhi Pro Fac DSF Res Res Acc Matter Collected 2876 | 322 61 91 150 235 30 . 373 209 . 105 . 55 . 1 574 106 564 Remotely . | . . . . . . . . . . . . . . . . . . Salvage Created 4571 | 128 179 224 42 519 30 . 812 348 42 89 . . 12 130 976 204 836 Parts 295 | 17 9 21 10 23 3 . 54 22 5 4 . . 3 7 53 16 48 Haulers Intercepted 8 | . . . . 3 1 . . 1 . . . . . . 2 . 1 Recyclers Shooed 4 | . . . . . . . 2 . . . . . . . . . 2 Parts Field Recycled . | . . . . . . . . . . . . . . . . . . Retrieved Matter . | . . . . . . . . . . . . . . . . . . Parts Self-Destructed 5 | . . . . . . . . . 5 . . . . . . . . Prevented . | . . . . . . . . . . . . . . . . . . Parts Restored . | . . . . . . . . . . . . . . . . . . Kills | -11 -10 -9 -9 -8 -7 -7 -6 -5 -5 -5 -5 -4 -4 -4 -3 -2 -1 ------- Run | Yrd Mat Mat Min Mat Fac DSF Fac Fac Upp Upp Zhi Pro Fac DSF Res Res Acc Combat Hostiles Destroyed 98 | . 4 7 6 11 . . 7 9 5 . . . . 3 13 7 26 Melee 10 | . . . . 6 . . . . . . . . . . 1 . 3 Guns 26 | . 4 7 . . . . 4 . 1 . . . . . 1 . 9 AOE 60 | . . . 6 5 . . 3 9 4 . . . . 3 11 7 12 Classes Destroyed 14 | 1 1 3 . 5 . . 2 . . 1 . . . 1 . . . Worker 18 | . . . . 1 . . 8 1 . . . . . . 5 2 1 Builder 10 | . . . . 1 . . 1 1 . . . . . . 4 . 3 Tunneler 8 | 5 . . . . . . 1 . . . . . . . 1 . 1 Hauler 8 | . . . . 3 1 . . 1 . . . . . . 2 . 1 Recycler 7 | . . . . . . . 3 1 . . . . . . 2 . 1 Operator 4 | . . . . 2 . . . . . . . . 1 . . 1 . Watcher 4 | . . . . 1 . . 1 . . . . . . . . . 2 Swarmer 61 | . . 4 6 4 . . 4 9 5 . . . . . 3 7 19 Cutter 3 | . . . . . . . . . . . . . . 3 . . . Grunt 11 | . 4 . . 5 . . . . . . . . . . . . 2 Duelist 1 | . . 1 . . . . . . . . . . . . . . . Sentry 4 | . . 2 . 2 . . . . . . . . . . . . . Programmer 18 | . . . . . . . 3 . . . . . . . 10 . 5 Packrat 1 | . . . . . . . . . . 1 . . . . . . . Samaritan 1 | . . . . . . . . . . 1 . . . . . . . Best Kill Streak 9 | 2 2 5 3 5 1 . 5 7 5 . . . 1 3 7 5 9 Combat Bots Only 6 | . 2 5 3 4 . . 3 5 5 . . . . 3 6 5 6 Max Kills in Single Turn 5 | 1 1 1 2 4 1 . 2 4 2 1 . . 1 2 2 5 3 Gunslinging . | . . . . . . . . . . . . . . . . . . Exploded 5 | . . . 2 4 . . 2 4 2 . . . . 2 2 5 3 Melee 1 | . . . . 1 . . . . . . . . . . 1 . 1 Uniques/NPCs Destroyed . | . . . . . . . . . . . . . . . . . . Combat | -11 -10 -9 -9 -8 -7 -7 -6 -5 -5 -5 -5 -4 -4 -4 -3 -2 -1 -------- Run | Yrd Mat Mat Min Mat Fac DSF Fac Fac Upp Upp Zhi Pro Fac DSF Res Res Acc Hostile Shots Fired 1374 | . 24 39 8 107 . 1 77 33 16 32 . 4 . 38 173 184 638 Missed 522 | . 6 11 2 43 . 1 30 12 5 15 . 1 . 13 70 74 239 Hits 852 | . 18 28 6 64 . . 47 21 11 17 . 3 . 25 103 110 399 Melee 2 | . . . . . . . . . . . . . . 2 . . . Projectile 850 | . 18 28 6 64 . . 47 21 11 17 . 3 . 23 103 110 399 AOE 3 | . . . . . . . 1 . . . . . . 1 . . 1 Critical Strikes 47 | . . 2 . 4 . . 1 . . . . . . 1 12 8 19 Part Disruptions 2 | . . . . . . . . . . . . . . . . . 2 Damage Taken 19471 | . 238 305 134 1009 . . 844 348 238 294 . 70 . 941 2753 2339 9958 Core 2395 | . 115 63 11 34 . . 115 28 30 16 . . . 68 227 61 1627 Absorbed by Shields 10 | . . . . . . . . 10 . . . . . . . . . Regen/Repaired (Parts) 907 | . . . . . . . . . . . . . . . . 377 530 Core Remaining (%) 87 | 100 54 . 81 93 . 100 86 . . . . 92 . 94 82 95 . Volleys Fired 198 | 14 18 18 5 7 5 . 30 5 7 3 . . 1 3 22 8 52 Largest 2 | 2 2 2 1 1 1 . 1 1 1 1 . . 1 1 1 1 2 Hottest 71 | 70 70 70 30 30 28 . 36 36 43 28 . . 43 43 43 43 71 Shots Fired 255 | 28 36 29 5 7 5 . 31 5 7 3 . . 1 3 22 8 65 Gun 191 | 28 36 29 . . 5 . 26 . 4 3 . . . . 9 5 46 Cannon . | . . . . . . . . . . . . . . . . . . Launcher 64 | . . . 5 7 . . 5 5 3 . . . 1 3 13 3 19 Special . | . . . . . . . . . . . . . . . . . . Kinetic 141 | 14 18 11 . . 5 . 26 . 4 3 . . . . 9 5 46 Thermal 50 | 14 18 18 . . . . . . . . . . . . . . . Explosive 64 | . . . 5 7 . . 5 5 3 . . . 1 3 13 3 19 Electromagnetic . | . . . . . . . . . . . . . . . . . . Robot Hit Streak 16 | 7 8 8 2 4 5 . 13 5 4 3 . . . . 5 16 10 Robot Miss Streak 8 | 4 4 2 1 2 4 . 5 . 6 2 . . . 5 7 3 8 Penetration Max . | . . . . . . . . . . . . . . . . . . Secondary Targets . | . . . . . . . . . . . . . . . . . . Shots Hit Robots 301 | 14 25 22 2 45 5 . 48 10 4 6 . . . . 42 10 68 Core Hits 326 | 6 10 12 6 19 3 . 49 13 8 6 . . 1 6 58 13 116 Critical Kills 1 | . . . . 1 . . . . . . . . . . . . . Critical Parts Destroyed 6 | . . . . 5 . . . . . . . . . . . . 1 Critical Strikes 15 | . 2 1 . 10 . . . . . . . . . . . . 2 Burn 3 | . 2 1 . . . . . . . . . . . . . . . Smash 8 | . . . . 7 . . . . . . . . . . . . 1 Sever 4 | . . . . 3 . . . . . . . . . . . . 1 Melee Attacks 179 | . . . . 61 . . 35 9 . 3 . . . . 33 6 32 Impact 60 | . . . . 40 . . . . . . . . . . . . 20 Slashing 119 | . . . . 21 . . 35 9 . 3 . . . . 33 6 12 Piercing . | . . . . . . . . . . . . . . . . . . Sneak Attacks 46 | . . . . 6 . . 16 4 . 3 . . . . 12 3 2 Combat Hostiles . | . . . . . . . . . . . . . . . . . . Follow-up Attacks . | . . . . . . . . . . . . . . . . . . Damage Inflicted 17068 | 196 319 282 340 2167 60 . 2275 1316 363 295 . . 47 372 3408 1291 4337 Guns 2837 | 196 319 282 . . 60 . 437 . 56 57 . . . . 200 165 1065 Cannons . | . . . . . . . . . . . . . . . . . . Explosions 8180 | . . . 340 435 . . 513 749 307 . . . 47 372 2000 861 2556 Melee 5993 | . . . . 1727 . . 1325 567 . 238 . . . . 1208 265 663 Ramming 58 | . . . . 5 . . . . . . . . . . . . 53 Kinetic 2372 | 95 144 93 . . 60 . 437 . 56 57 . . . . 200 165 1065 Thermal 669 | 101 175 189 . . . . . 204 . . . . . . . . . Explosive 7839 | . . . 340 435 . . 376 545 307 . . . 47 372 2000 861 2556 Electromagnetic 137 | . . . . . . . 137 . . . . . . . . . . Impact 1179 | . . . . 765 . . . . . . . . . . . . 414 Slashing 4814 | . . . . 962 . . 1325 567 . 238 . . . . 1208 265 249 Piercing . | . . . . . . . . . . . . . . . . . . Highest Corruption 38 | . . . . . . . 1 . . . . . . 1 19 4 38 Average Corruption 9 | . . . . . . . 1 . . . . . . 1 14 2 12 Corruption Purged . | . . . . . . . . . . . . . . . . . . Corruption Blocked . | . . . . . . . . . . . . . . . . . . Effects 64 | . . . . . . . 3 . . . . . . 1 23 1 36 Message Errors 16 | . . . . . . . . . . . . . . 1 6 . 9 Matter Fused 6 | . . . . . . . 1 . . . . . . . 2 . 3 Heat Flow Errors 5 | . . . . . . . . . . . . . . . 3 . 2 Energy Discharges 6 | . . . . . . . . . . . . . . . 3 1 2 Parts Rejected 2 | . . . . . . . . . . . . . . . . . 2 Parts Fused 1 | . . . . . . . 1 . . . . . . . . . . Data Loss (minor) 6 | . . . . . . . . . . . . . . . 3 . 3 Data Loss (major) 3 | . . . . . . . . . . . . . . . 2 . 1 Misfires 3 | . . . . . . . 1 . . . . . . . . . 2 Misdirections 15 | . . . . . . . . . . . . . . . 4 . 11 Weapon Failures 1 | . . . . . . . . . . . . . . . . . 1 Overload Shots . | . . . . . . . . . . . . . . . . . . Overflow Damage 1661 | . . . 30 304 . . 152 102 1 116 . . . 53 384 122 397 Projectiles . | . . . . . . . . . . . . . . . . . . Explosions 522 | . . . 30 13 . . 7 39 1 . . . . 53 80 71 228 Melee 1139 | . . . . 291 . . 145 63 . 116 . . . . 304 51 169 Knockbacks 5 | . . . . 2 . . . . . . . . . . . . 3 Impact 5 | . . . . 2 . . . . . . . . . . . . 3 Kinetic . | . . . . . . . . . . . . . . . . . . Secondary . | . . . . . . . . . . . . . . . . . . Self-Inflicted Damage 980 | . . . 49 52 . . 60 . 71 . . . . 100 358 6 284 Shots 25 | . . . 2 4 . . 3 . 1 . . . . 2 7 1 5 Rammed 11 | . . . . 2 . . . . . . . . . . 1 . 8 Targets Rammed 11 | . . . . 2 . . . . . . . . . . 1 . 8 Kicked . | . . . . . . . . . . . . . . . . . . Crushed . | . . . . . . . . . . . . . . . . . . Highest Temperature 225 | 27 222 87 . 2 . . . . . . . . . . 194 . 225 Average Temperature 53 | 12 91 27 . 1 . . . . . . . . . . 95 . 116 Received Heat Transfer 1353 | . 135 105 . 486 . . 102 84 . 75 . 9 . 102 21 90 144 Siege Activations . | . . . . . . . . . . . . . . . . . . Martial Activations . | . . . . . . . . . . . . . . . . . . Shielding Activations . | . . . . . . . . . . . . . . . . . . Robots Disrupted . | . . . . . . . . . . . . . . . . . . Combat Hostiles . | . . . . . . . . . . . . . . . . . . Robots Corrupted 7 | . . . . 4 . . . . . . . . . . . . 3 Combat Hostiles 2 | . . . . . . . . . . . . . . . . . 2 Parts Fried 8 | . . . . 7 . . . . . . . . . . . . 1 Impact Corruptions 18 | . . . . 11 . . . . . . . . . . . . 7 Robots Melted . | . . . . . . . . . . . . . . . . . . Combat Hostiles . | . . . . . . . . . . . . . . . . . . Parts Melted 2 | . 1 1 . . . . . . . . . . . . . . . Heat Transferred 1741 | 296 666 629 . . . . . 150 . . . . . . . . . Parts Sabotaged . | . . . . . . . . . . . . . . . . . . Parts Stolen . | . . . . . . . . . . . . . . . . . . Parts Stripped . | . . . . . . . . . . . . . . . . . . Power Chain Reactions . | . . . . . . . . . . . . . . . . . . Alert | -11 -10 -9 -9 -8 -7 -7 -6 -5 -5 -5 -5 -4 -4 -4 -3 -2 -1 ------- Run | Yrd Mat Mat Min Mat Fac DSF Fac Fac Upp Upp Zhi Pro Fac DSF Res Res Acc Maximum Alert Level 4 | . . . . 2 . . 2 2 . . . . . . 2 2 4 Low Security (%) 50 | 100 100 100 100 57 100 100 66 . . . . . 100 100 53 . . Level 1 19 | . . . . 41 . . 32 41 . . . . . . 15 64 4 Level 2 15 | . . . . . . . . 58 . . . . . . 31 35 26 Level 3 13 | . . . . . . . . . . . . . . . . . 65 Level 4 . | . . . . . . . . . . . . . . . . . 4 Level 5 . | . . . . . . . . . . . . . . . . . . High Security . | . . . . . . . . . . . . . . . . . . Max Security . | . . . . . . . . . . . . . . . . . . Peak Influence 1117 | 10 71 110 158 400 179 96 417 545 . . . . 45 148 509 502 1117 Initial 295 | . . . 31 45 179 81 50 203 . . . . 21 17 83 264 295 Average 302 | 1 23 59 96 177 148 82 136 409 . . . . 23 78 229 368 813 Influence Increases 5510 | 25 101 180 177 700 7 15 712 452 185 . . 75 34 151 760 378 1558 Destroy 0b10 Robot/C 1960 | . 80 140 120 220 . . 140 180 100 . . . . 60 260 140 520 Destroy 0b10 Robot/NC 300 | 25 . . . 40 5 . 70 20 . . . . 5 5 70 15 45 Destroy Leader 354 | . 20 40 20 48 2 . 42 22 10 . . . . 10 64 10 66 Successful Hack 19 | . . . . . . . 14 . . . . . . . 5 . . Disable Machine 210 | . . . . 30 . . 75 30 . . . . 15 . 30 . 30 Destroy Structure 987 | . 1 . 37 32 . . 26 110 . . . . 14 46 166 78 477 Partial Spotted 195 | . . . . 15 . . 120 . . . . . . . 15 15 30 Lose Combat Pursuer 1485 | . . . . 315 . 15 225 90 75 . . 75 . 30 150 120 390 Influence Decreases 4399 | 25 100 101 139 424 285 35 391 354 321 263 116 40 44 28 437 357 939 Entered New Map 1504 | . . 1 49 73 215 35 46 214 191 73 116 . 14 8 65 207 197 Time Decay 2315 | 25 100 90 90 281 70 . 315 130 120 140 . 40 30 . 332 130 422 Lost Part 580 | . . 10 . 70 . . 30 10 10 50 . . . 20 40 20 320 Squads Dispatched 39 | . . 2 . 3 . . 5 3 . . . . . 1 7 4 14 Investigation 5 | . . 1 . . . . . . . . . . . . . 2 2 Extermination 12 | . . . . . . . 2 1 . . . . . . 3 1 5 Reinforcement 19 | . . 1 . 3 . . 3 2 . . . . . 1 4 1 4 Assault 3 | . . . . . . . . . . . . . . . . . 3 Garrison . | . . . . . . . . . . . . . . . . . . Intercept . | . . . . . . . . . . . . . . . . . . Searches Triggered . | . . . . . . . . . . . . . . . . . . Construction Impeded 4 | . . . . . . . 1 1 . . . . . . 1 . 1 Haulers Reinforced 1 | . . . . . . . . 1 . . . . . . . . . Active Scanning Responses . | . . . . . . . . . . . . . . . . . . Cargo Convoy Interrupts . | . . . . . . . . . . . . . . . . . . Stealth | -11 -10 -9 -9 -8 -7 -7 -6 -5 -5 -5 -5 -4 -4 -4 -3 -2 -1 --------- Run | Yrd Mat Mat Min Mat Fac DSF Fac Fac Upp Upp Zhi Pro Fac DSF Res Res Acc Distress Signals 11 | . . . . 1 . . 2 . . . . . . . 3 2 3 Communications Jammed . | . . . . . . . . . . . . . . . . . . Distress Signals . | . . . . . . . . . . . . . . . . . . Times Spotted 325 | . 7 13 6 40 . . 31 17 8 12 . 5 . 7 39 38 102 Peak Tracking Total 28 | . 2 6 3 10 . 2 7 6 5 12 . 5 . 5 12 25 28 Tactical Retreats 45 | . . . . 9 . 1 8 3 3 . . 2 . 2 3 2 12 Traps | -11 -10 -9 -9 -8 -7 -7 -6 -5 -5 -5 -5 -4 -4 -4 -3 -2 -1 ------- Run | Yrd Mat Mat Min Mat Fac DSF Fac Fac Upp Upp Zhi Pro Fac DSF Res Res Acc Traps Triggered 8 | . . 1 . . . 2 . 1 . . . . . . 1 . 3 Indirectly . | . . . . . . . . . . . . . . . . . . Trap Hack Attempts . | . . . . . . . . . . . . . . . . . . Triggered . | . . . . . . . . . . . . . . . . . . Disarmed . | . . . . . . . . . . . . . . . . . . Reprogrammed . | . . . . . . . . . . . . . . . . . . Reused . | . . . . . . . . . . . . . . . . . . Traps Extracted . | . . . . . . . . . . . . . . . . . . Installed . | . . . . . . . . . . . . . . . . . . Triggered . | . . . . . . . . . . . . . . . . . . Machines | -11 -10 -9 -9 -8 -7 -7 -6 -5 -5 -5 -5 -4 -4 -4 -3 -2 -1 ---------- Run | Yrd Mat Mat Min Mat Fac DSF Fac Fac Upp Upp Zhi Pro Fac DSF Res Res Acc Machines Disabled 14 | . . . . 2 . . 5 2 . . . . 1 . 2 . 2 Max in Single Turn 3 | . . . . 2 . . 3 2 . . . . 1 . 1 . 1 Energy Cycler 1 | . . . . . . . . . . . . . . . . . 1 Machines Repaired . | . . . . . . . . . . . . . . . . . . Machines Dismantled . | . . . . . . . . . . . . . . . . . . Machines Sabotaged . | . . . . . . . . . . . . . . . . . . Overloaded Fab Kills . | . . . . . . . . . . . . . . . . . . Hacking | -11 -10 -9 -9 -8 -7 -7 -6 -5 -5 -5 -5 -4 -4 -4 -3 -2 -1 --------- Run | Yrd Mat Mat Min Mat Fac DSF Fac Fac Upp Upp Zhi Pro Fac DSF Res Res Acc Machines Accessed 22 | . 1 . 2 1 2 . 3 2 . . 4 . 1 . 2 2 2 Terminals 7 | . 1 . . . 1 . 2 1 . . . . 1 . 1 . . Fabricators . | . . . . . . . . . . . . . . . . . . Repair Stations 3 | . . . . . . . . . . . . . . . . 1 2 Recycling Units 2 | . . . . . . . . 1 . . . . . . 1 . . Scanalyzers 3 | . . . . 1 1 . 1 . . . . . . . . . . Garrison Access 1 | . . . . . . . . . . . . . . . . 1 . Total Hacks 46 | . 1 . 2 2 4 . 5 3 . . 17 . 1 . 4 3 4 Successful 33 | . . . 2 2 4 . 2 2 . . 17 . 1 . 1 1 1 Failed 13 | . 1 . . . . . 3 1 . . . . . . 3 2 3 Catastrophic 1 | . . . . . . . . . . . . . . . . 1 . Database Lockouts . | . . . . . . . . . . . . . . . . . . Manual 10 | . 1 . . . . . 4 . . . . . . . . 1 4 Terminals 10 | . 1 . . . 1 . 4 1 . . . . 1 . 2 . . Fabricators . | . . . . . . . . . . . . . . . . . . Repair Stations 5 | . . . . . . . . . . . . . . . . 1 4 Recycling Units 4 | . . . . . . . . 2 . . . . . . 2 . . Scanalyzers 6 | . . . . 2 3 . 1 . . . . . . . . . . Garrison Access 2 | . . . . . . . . . . . . . . . . 2 . Terminal Hacks 24 | . . . 2 . 1 . 1 1 . . 17 . 1 . 1 . . Record 5 | . . . . . . . . . . . 5 . . . . . . Part Schematic 4 | . . . . . . . . . . . 4 . . . . . . Robot Analysis 4 | . . . . . . . . . . . 4 . . . . . . Prototype ID Bank 4 | . . . . . . . . . . . 4 . . . . . . Open Door 2 | . . . 2 . . . . . . . . . . . . . . Open DSF 4 | . . . . . 1 . . 1 . . . . 1 . 1 . . Branch Access Points 1 | . . . . . . . 1 . . . . . . . . . . Fabricator Hacks . | . . . . . . . . . . . . . . . . . . Repair Station Hacks . | . . . . . . . . . . . . . . . . . . Recycling Unit Hacks 1 | . . . . . . . . 1 . . . . . . . . . Retrieve Components 1 | . . . . . . . . 1 . . . . . . . . . Scanalyzer 6 | . . . . 2 3 . 1 . . . . . . . . . . Retrieve Study 6 | . . . . 2 3 . 1 . . . . . . . . . . Garrison Access Hacks . | . . . . . . . . . . . . . . . . . . Unauthorized Hacks 2 | . . . . . . . . . . . . . . . . 1 1 Terminals . | . . . . . . . . . . . . . . . . . . Fabricators . | . . . . . . . . . . . . . . . . . . Repair Stations 2 | . . . . . . . . . . . . . . . . 1 1 Patch 2 | . . . . . . . . . . . . . . . . 1 1 Recycling Units . | . . . . . . . . . . . . . . . . . . Scanalyzers . | . . . . . . . . . . . . . . . . . . Garrison Access . | . . . . . . . . . . . . . . . . . . Data Cores Recovered 1 | . . . . . . . . . . . . . 1 . . . . Used . | . . . . . . . . . . . . . . . . . . Hacking Detections 10 | . 1 . . . 1 . 3 1 . . . . . . 2 1 1 Full Trace Events 2 | . . . . . . . . . . . . . . . . 1 1 Feedback Events . | . . . . . . . . . . . . . . . . . . Feedback Blocked . | . . . . . . . . . . . . . . . . . . Robot Schematics Acquired . | . . . . . . . . . . . . . . . . . . Robots Built . | . . . . . . . . . . . . . . . . . . Authchips . | . . . . . . . . . . . . . . . . . . Time . | . . . . . . . . . . . . . . . . . . Total Robot Build Rating . | . . . . . . . . . . . . . . . . . . Part Schematics Acquired 4 | . . . . . . . . . . . 4 . . . . . . Parts Built . | . . . . . . . . . . . . . . . . . . Authchips . | . . . . . . . . . . . . . . . . . . Time . | . . . . . . . . . . . . . . . . . . Total Part Build Rating . | . . . . . . . . . . . . . . . . . . Part Studies Acquired 6 | . . . . 2 3 . 1 . . . . . . . . . . Parts Repaired . | . . . . . . . . . . . . . . . . . . Time . | . . . . . . . . . . . . . . . . . . Parts Recycled . | . . . . . . . . . . . . . . . . . . Recycled Matter . | . . . . . . . . . . . . . . . . . . Retrieved Matter . | . . . . . . . . . . . . . . . . . . Retrieved Components 2 | . . . . . . . . 2 . . . . . . . . . Parts Scanalyzed . | . . . . . . . . . . . . . . . . . . Part Schematics Acquired . | . . . . . . . . . . . . . . . . . . Parts Damaged . | . . . . . . . . . . . . . . . . . . Bothacking | -11 -10 -9 -9 -8 -7 -7 -6 -5 -5 -5 -5 -4 -4 -4 -3 -2 -1 ------------ Run | Yrd Mat Mat Min Mat Fac DSF Fac Fac Upp Upp Zhi Pro Fac DSF Res Res Acc Used RIF Installer . | . . . . . . . . . . . . . . . . . . Robots Hacked . | . . . . . . . . . . . . . . . . . . Non-combat . | . . . . . . . . . . . . . . . . . . Combat . | . . . . . . . . . . . . . . . . . . Robot Hacks Applied . | . . . . . . . . . . . . . . . . . . Relay Couplers Released . | . . . . . . . . . . . . . . . . . . Fabnet Peak Effective % . | . . . . . . . . . . . . . . . . . . Robots Rewired . | . . . . . . . . . . . . . . . . . . Allies Hacked . | . . . . . . . . . . . . . . . . . . Hacks Repelled . | . . . . . . . . . . . . . . . . . . Allies | -11 -10 -9 -9 -8 -7 -7 -6 -5 -5 -5 -5 -4 -4 -4 -3 -2 -1 -------- Run | Yrd Mat Mat Min Mat Fac DSF Fac Fac Upp Upp Zhi Pro Fac DSF Res Res Acc Total Allies . | . . . . . . . . . . . . . . . . . . Largest Group . | . . . . . . . . . . . . . . . . . . Highest-Rated Group . | . . . . . . . . . . . . . . . . . . Highest-Rated Ally . | . . . . . . . . . . . . . . . . . . Total Orders . | . . . . . . . . . . . . . . . . . . Ally Attacks . | . . . . . . . . . . . . . . . . . . Total Damage . | . . . . . . . . . . . . . . . . . . Kills . | . . . . . . . . . . . . . . . . . . Allies Corrupted . | . . . . . . . . . . . . . . . . . . Allies Melted . | . . . . . . . . . . . . . . . . . . Intel | -11 -10 -9 -9 -8 -7 -7 -6 -5 -5 -5 -5 -4 -4 -4 -3 -2 -1 ------- Run | Yrd Mat Mat Min Mat Fac DSF Fac Fac Upp Upp Zhi Pro Fac DSF Res Res Acc Active Infowar (turns) 3498 | 88 279 219 178 287 . . 393 265 244 280 70 106 62 74 764 . 189 Optics 2447 | . . . . . . . 393 265 244 280 70 106 62 74 764 . 189 Structural 148 | . . 93 55 . . . . . . . . . . . . . . Seismic 1051 | 88 279 219 178 287 . . . . . . . . . . . . . Robot Analysis Total 4 | . . . . . . . . . . . 4 . . . . . . Derelict Logs Recovered 7 | . . . 2 . . . . . 3 1 . 1 . . . . . Drone Launches . | . . . . . . . . . . . . . . . . . . Drone Recoveries . | . . . . . . . . . . . . . . . . . . Exploration | -11 -10 -9 -9 -8 -7 -7 -6 -5 -5 -5 -5 -4 -4 -4 -3 -2 -1 ------------- Run | Yrd Mat Mat Min Mat Fac DSF Fac Fac Upp Upp Zhi Pro Fac DSF Res Res Acc Turns Passed 5706 | 196 279 219 188 626 153 74 805 265 244 280 70 106 62 74 764 275 1026 Spaces Moved 7840 | 153 218 155 307 640 270 77 1245 412 415 328 125 209 82 75 1190 456 1483 Core 7458 | 36 . 111 307 639 270 77 1244 412 415 328 125 209 82 75 1190 456 1482 Treads 2 | . . 1 . . . . . . . . . . . . . . 1 Legs 1 | . . . . 1 . . . . . . . . . . . . . Wheels 379 | 117 218 43 . . . . 1 . . . . . . . . . . Hover . | . . . . . . . . . . . . . . . . . . Flight . | . . . . . . . . . . . . . . . . . . Fastest Speed 50 | 50 90 50 50 50 50 50 50 50 50 50 50 50 50 50 50 50 50 Average Speed 54 | 88 96 86 50 55 50 50 50 50 54 64 50 50 50 50 50 50 50 Slowest Speed 160 | 100 100 160 50 150 50 50 80 50 150 150 50 50 50 50 50 50 150 Overloaded Moves . | . . . . . . . . . . . . . . . . . . Propulsion Burnouts . | . . . . . . . . . . . . . . . . . . Robots Hopped . | . . . . . . . . . . . . . . . . . . Potential Cave-ins . | . . . . . . . . . . . . . . . . . . Cave-ins Triggered . | . . . . . . . . . . . . . . . . . . Exploration Rate (%) 40 | 6 46 21 70 68 7 53 38 19 73 54 60 42 4 70 41 18 41 Regions Visited 17 Branch Regions 5 Pre-discovered Areas 5 | . . . 2 . . . . . . . 3 . . . . . . Known Exits Taken 4 | . . . . . 1 . . . 1 . . 1 1 . . . . Unknown Exits Taken 11 | 1 1 1 1 1 . . 1 1 . 1 1 . . . 1 1 . Scrap Searched 5 | . . . 1 . . . . . 1 1 . 2 . . . . . Spaces Dug 45 | . . . . 8 . . 3 . . . . . . . 5 2 27 Terrain Destroyed 598 | . . . 46 30 . . 31 53 51 . . . 6 34 113 31 203 Melee 26 | . . . . 8 . . 3 . . . . . . . 5 2 8 Projectile . | . . . . . . . . . . . . . . . . . . AOE 572 | . . . 46 22 . . 28 53 51 . . . 6 34 108 29 195 Terrain Rammed . | . . . . . . . . . . . . . . . . . . Walls Destroyed . | . . . . . . . . . . . . . . . . . . Machines Disabled . | . . . . . . . . . . . . . . . . . . Actions | -11 -10 -9 -9 -8 -7 -7 -6 -5 -5 -5 -5 -4 -4 -4 -3 -2 -1 --------- Run | Yrd Mat Mat Min Mat Fac DSF Fac Fac Upp Upp Zhi Pro Fac DSF Res Res Acc Total 8714 | 182 252 212 336 791 280 111 1339 451 424 386 129 209 101 106 1282 485 1638 Wait 184 | . 9 26 5 36 . . . . . 52 . . 17 8 13 3 15 Move 7824 | 152 217 154 306 639 269 76 1244 411 414 327 124 208 81 74 1190 455 1483 Hop . | . . . . . . . . . . . . . . . . . . Pick Up 31 | 8 3 3 2 9 1 1 . 2 . . . . . . 1 . 1 Fast Attach 96 | 6 . 2 2 13 4 1 15 2 1 . 4 1 . 11 8 4 22 Attach 29 | 1 . 3 3 4 . . . . . . . . 1 1 3 3 10 Detach 23 | . . . 2 4 . . 1 . . . . . 1 1 2 3 9 Swap 33 | 1 2 . 5 2 . 1 5 5 2 1 1 . . . 5 . 3 Drop 63 | . 3 6 6 14 1 2 9 3 . . . . . 8 5 3 3 Fire 198 | 14 18 18 5 7 5 . 30 5 7 3 . . 1 3 22 8 52 Melee 179 | . . . . 61 . . 35 9 . 3 . . . . 33 6 32 Ram 10 | . . . . 2 . . . . . . . . . . . . 8 Kick . | . . . . . . . . . . . . . . . . . . Crush . | . . . . . . . . . . . . . . . . . . Escape Stasis 44 | . . . . . . 30 . 14 . . . . . . . . . Rewire . | . . . . . . . . . . . . . . . . . . Trap . | . . . . . . . . . . . . . . . . . . Miscellaneous . | . . . . . . . . . . . . . . . . . . Route ------- -11/Scrapyard -10/Materials (discovered 2 exits: [*Mat x2]) -9/Materials -9/Mines -8/Materials -7/Factory -7/DSF -6/Factory (discovered 5 exits: *Fac / *Low x2 / Ext x2) -5/Factory -5/Upper Caves -5/Upper Caves -5/Zhirov -4/Proximity Caves -4/Factory (discovered 2 exits: Arm / DSF) -4/DSF -3/Research -2/Research -1/Access History --------- Turn | Location | Event 2 | -11/Scrapyard | Met Revision 17 3 | -11/Scrapyard | Discovered new exit (range 15) 197 | -11/Scrapyard | Entered Materials 307 | -10/Materials | Discovered new exit (range 16) 312 | -10/Materials | Build established: Mutant 435 | -10/Materials | Discovered new exit (range 14) 476 | -10/Materials | Entered another Materials area 476 | -9/Materials | Evolved 2 slots: Propulsion x2 636 | -9/Materials | Discovered new exit (range 9) 695 | -9/Materials | Entered Mines 701 | -9/Mines | Found the Drone Emporium 705 | -9/Mines | Found Prototype Device 705 | -9/Mines | Identified Bomb Drone Bay 756 | -9/Mines | Met a Derelict who couldn't figure out how to use a Trap Extractor 776 | -9/Mines | Learned location of Zion (-6) 867 | -9/Mines | Met a Derelict bent on vengeance 881 | -9/Mines | Discovered new exit (range 5) 883 | -9/Mines | Entered Materials 883 | -8/Materials | Evolved 2 slots: Propulsion x2 1500 | -8/Materials | Discovered new exit (range 13) 1509 | -8/Materials | Entered Factory 1509 | -7/Factory | Evolved 2 slots: Propulsion x2 1662 | -7/Factory | Identified exit to DSF 1662 | -7/Factory | Entered DSF 1715 | -7/DSF | Discovered new exit (range 11) 1731 | -7/DSF | Additional patrols routed to DSF 1736 | -7/DSF | Entered Factory 1736 | -6/Factory | Evolved 2 slots: Propulsion x2 1772 | -6/Factory | Identified exit to Lower Caves 1772 | -6/Factory | Identified exit to Extension 2252 | -6/Factory | Build established: Scavenger-Mutant 2385 | -6/Factory | Spotted B-75 Beast 2537 | -6/Factory | Discovered new exit (range 9) 2541 | -6/Factory | Entered another Factory area 2541 | -5/Factory | Evolved 2 slots: Propulsion x2 2803 | -5/Factory | Discovered new exit (range 8) 2806 | -5/Factory | Entered Upper Caves 2825 | -5/Upper Caves | Attracted the attention of an 0b10 outpost 2939 | -5/Upper Caves | Identified exit to Upper Caves 2946 | -5/Upper Caves | Learned Factory garrison access intel 3050 | -5/Upper Caves | Entered another Upper Caves area 3099 | -5/Upper Caves | Learned Factory stockpile data 3323 | -5/Upper Caves | Discovered new exit (range 14) 3330 | -5/Upper Caves | Entered Zhirov 3330 | -5/Zhirov | Discovered new exit (range 3) 3340 | -5/Zhirov | Met Zhirov 3352 | -5/Zhirov | Found Alien Artifact 3352 | -5/Zhirov | Identified Integrated Dissipator 3352 | -5/Zhirov | Installed Integrated Dissipator, increased core heat dissipation (+20) 3353 | -5/Zhirov | Lost 5 parts (4n1w) 3382 | -5/Zhirov | Learned location of Quarantine (-2) 3382 | -5/Zhirov | Learned location of Testing (-3) 3382 | -5/Zhirov | Learned location of Command (-1) 3387 | -5/Zhirov | Zhirov requested help retrieving the SGEMP Prototype 3400 | -5/Zhirov | Entered Proximity Caves 3402 | -4/Proximity Caves | Attracted the attention of an 0b10 checkpoint 3412 | -4/Proximity Caves | Identified exit to Factory 3506 | -4/Proximity Caves | Entered Factory 3506 | -4/Factory | Evolved 2 slots: Propulsion x2 3507 | -4/Factory | Identified exit to Armory 3509 | -4/Factory | Loaded intel: 3 garrison access locations 3568 | -4/Factory | Identified exit to DSF 3568 | -4/Factory | Entered DSF 3596 | -4/DSF | Additional patrols routed to DSF 3600 | -4/DSF | Discovered new exit (range 18) 3642 | -4/DSF | Entered Research 3642 | -3/Research | Evolved 2 slots: Propulsion x2 3660 | -3/Research | Build established: Mutant 3807 | -3/Research | Spotted B-86 Titan 4055 | -3/Research | System corruption reached 10% 4082 | -3/Research | Lost 4 parts (1p1n1u1w) 4082 | -3/Research | Spotted B-86 Titan 4373 | -3/Research | Spotted B-86 Titan 4398 | -3/Research | Discovered new exit (range 11) 4406 | -3/Research | Entered another Research area 4406 | -2/Research | Evolved 2 slots: Propulsion x2 4676 | -2/Research | Discovered new exit (range 6) 4681 | -2/Research | Entered Access 4681 | -1/Access | Evolved 2 slots: Propulsion x2 4747 | -1/Access | Energy Cycler disabled 4959 | -1/Access | Spotted B-99 Colossus 5037 | -1/Access | Lost 6 parts (5n1u) 5181 | -1/Access | First assault squad dispatched 5422 | -1/Access | System corruption reached 10% 5586 | -1/Access | Lost 14 parts (11n1u2w) 5616 | -1/Access | System corruption reached 30% 5662 | -1/Access | Core integrity fell below 50% 5682 | -1/Access | Core integrity fell below 20% 5701 | -1/Access | Spotted B-99 Colossus 5707 | -1/Access | Destroyed by B-99 Colossus with Linear Accelerator Last Messages --------------- 05681_ ALERT: Unidentified disturbance in Zone 7H, assault force dispatched. 05685_ Centrium Leg destroyed. 05689_ O-32 Director: "IFF HANDSHAKE FAILED. SECURING TERMINAL." 05691_ K-01 Serf destroyed. 05694_ K-01 Serf collects debris. 05695_ O-32 Director uses terminal to summon reinforcements. 05695_ ALERT: Hostiles spotted, dispatching reinforcements to Terminal A011. 05695_ O-32 Director locks terminal. 05695_ W-44 Eye sends out distress signal. 05695_ K-01 Serf collects debris. 05698_ System corrupted: Substantial component data lost. 05703_ O-32 Director uses terminal to summon reinforcements. 05703_ ALERT: Hostiles spotted, dispatching reinforcements to Terminal A007. 05703_ O-32 Director locks terminal. 05704_ U-05 Engineer destroyed. 05704_ Penetrated by Slug. 05706_ K-01 Serf collects debris. Map ----- +----------------------------------------------------+ | ????????????????????????????????????#"" #???? | | ????????????????????????????????????#"" #???? | | ?????????????????????????????? ?????#"" #???? | | ?????????????????????????###?? ?????#"" ##### | | ??????????????????????# ?# ?? ????#"T / | | ??????????????????????# ## ## ?????#"" ##### | | ??????????????????????# ????#"" #???? | | ??????????????????????+ ?????#"" #???? | | ??????????????????????# ????#"" #???? | | ??????????????????????# ""#???#" #???? | | ??????????????????????# ""#???# #???? | | ??????????????????????# ""#???# #???? | | ??????????????????????# T#???# #???? | | ?????????????#????????# ""#???# #???? | | ?????????????# ######## ""#???# !#???? | | ????????????## !% ""############/####? | | ???????????? [ % # | | ??????????? % / | | ??????????H? # | | ????????????????###### k ##########+####### # | | ?????????????????????## ##??????? ????? # | | ??????????????????????#u #?????? ??? # | | ??????????????????????# #????# ?## #? | | ??????????????????????#% #????# #?? #? | | ??????????????????????# #????# #?? #? | | ??????????????????????# @#????# #??? ? | | ??????????????????????# % #????# +??? ? | | ??????????????????????# #????# """ #??? # | | ??????????????????????# #????# """S"" #????# | | ??????????????????????# #????# ] """""" #????? | | ??????????????????????+ #????# ??? ? #????? | | ??????????????????????# k#????# ??????? #????? | | ??????????????????????# #????#####????????#????? | | ??????????????????????# #??????????????????????? | | ??????????????????????# #??????????????????????? | | ??????????????????????+ #??????????????????????? | | ??????????????????????# ???????????????????????? | | ??????????????????????# ???????????????????????? | | ??????????????????????# ???????????????????????? | | ??????????????????????# ???????????????????????? | | ??????????????????????? ???????????????????????? | | ?????????????????????????????????????????????????? | | ?????????????????????????????????????????????##### | | ?????????????????????????????????????????????# | | ?????????????????????????????????????????????# | | ?????????????????????????????????????????????# | | ?????????????????????????????????????????????# " | | ?????????????????????????????????????????????#""" | | ?????????????????????????????????????????????# """ | | ?????????????????????????????????????????????# " | +----------------------------------------------------+ Best States ------------- Heat Dissipation 72 Energy Generation 14 Energy Capacity 160 Matter Stores 300 Matter Capacity 300 Sight Range 18 Terrain Scan Density 10 Additional Mass Support 9 Propulsion Shielding 66 Evasion (%) 50 Recoil Reduction 13 Offensive Hacking 12 Item Schematics ----------------- Assault Drone Bay | -5/Zhirov | Free Exp. Heat Sink | -5/Zhirov | Free Exp. Optical Array | -5/Zhirov | Free Imp. Arc Thrower | -5/Zhirov | Free Robot Schematics ------------------ None Fabricated ------------ Nothing Repaired ---------- Nothing Studied --------- Hammer | -8/Materials | Hacked Missile Launcher | -8/Materials | Hacked Maul | -7/Factory | Hacked Lgt. Ion Engine | -7/Factory | Hacked Flak Gun | -7/Factory | Hacked Katana | -6/Factory | Hacked Alien Tech Used ----------------- Integrated Dissipator Achievements -------------- None Challenges ------------ None Game ------ Seed TerrainPlatingDevice Manual? 0 Play Time 01:25:35 Cumulative 228.5 hours Start 2026.06.20 @ 03:03:43 End 2026.06.20 @ 04:30:05 Sessions 1 Manual Loads 0 Difficulty Rogue Special Mode None Game No. 112 Rogue 112 Adventurer 0 Explorer 0 Win Type - Total 11 Types 8/1/1/0/0/0/0/0/0/1 Lore% 74 Gallery% 70 Achievement% 68 Wizard Run 0 Options --------- Layout 0 ASCII 0 Keyboard 1 Movement Arrows Keybinds 0 Fullscreen 2 Font 18/SmallcapsGlow Map View 76x50 Zoom Use 0% Tactical HUD 1 Map Filters NONE Filters NONE Steam 1 RUN: 557fa9e1-d998-4507-96d1-a82418f0b40b